Cogmind - Beta 15 @@@ ROGUE MODE // 2025.09.14 @ 22:28:05 Player: Runagate Result: Self-destructed Performance ------------- Evolutions (4) 2000 Regions Visited (6) 1200 Robots Destroyed (67) 335 Value Destroyed (2236) 2236 Prototype IDs (8) 160 Alien Tech Used (0) 0 Bonus (1267) 1267 TOTAL SCORE: 7198 Bonus ------- High Alert Combat Kills 67 Entered Garrisons 200 Used RIF Installer 1000 Cogmind --------- Core Integrity 823/850 Matter 221/300 Energy 85/250 System Corruption 6% Temperature Cool (0) Movement Rolling (115) Ox1 Location -6/Factory Parts ------- > --- POWER (1) -------- Ion Engine > --- PROPULSION (3) --- Compact Wheel > --- UTILITY (8) ------ Improved Heat Sink Coolant Injector Large Storage Unit Improved Sensor Array Advanced Targeting Computer Relay Coupler [NC] (29) > --- WEAPON (3) ------- Cooled Pulse Rifle > --- INVENTORY (15) --- Improved Ion Engine Micro Nuclear Core Fusion Compressor Compact Wheel Improved Heat Sink Improved Terrain Scanner Seismic Detector Light Armor Plating Relay Coupler [NC] (31) Relay Coupler [NC] (31) Relay Coupler [Grunt] (34) Tractor Beam Peak State ------------ > --- POWER ------------ Fusion Compressor > --- PROPULSION ------- Compact Wheel Compact Wheel Compact Wheel > --- UTILITY ---------- Improved Heat Sink Improved Heat Sink Coolant Injector Large Storage Unit Improved Sensor Array Advanced Targeting Computer Recoil Stabilizer Relay Coupler [NC] > --- WEAPON ----------- Shock Rifle Gatling Laser Cooled Pulse Rifle > --- INVENTORY -------- Ion Engine Improved Ion Engine Micro Nuclear Core Improved Heat Sink Improved Terrain Scanner Seismic Detector Light Armor Plating Relay Coupler [NC] Relay Coupler [NC] Relay Coupler [Grunt] Tractor Beam [Rating: 43] Favorites ----------- Power Light Ion Engine Engine Light Ion Engine Power Core Micro Nuclear Core Propulsion Compact Wheel Treads Light Treads Leg Carbon-fiber Leg Wheel Compact Wheel Utility Large Storage Unit Device Improved Heat Sink Storage Large Storage Unit Processor Advanced Targeting Computer Hackware Relay Coupler [NC] Weapon Minigun Energy Gun Medium Laser Ballistic Gun Minigun Build | -11 -10 -9 -8 -8 -7 -6 ------- Run | Yrd Mat Mat Mat Gar Fac Fac Slots Evolved 8 | . . 2 2 . 2 2 Power . | . . . . . . . Propulsion 1 | . . 1 . . . . Utility 6 | . . . 2 . 2 2 Weapon 1 | . . 1 . . . . Parts Attached 59 | 7 8 18 4 10 5 7 Power 10 | 1 1 2 1 2 . 3 Engine 8 | 1 1 2 1 1 . 2 Core 2 | . . . . 1 . 1 Reactor . | . . . . . . . Propulsion 17 | 2 4 5 1 3 . 2 Treads 1 | 1 . . . . . . Leg 1 | . . . . 1 . . Wheel 15 | 1 4 5 1 2 . 2 Hover . | . . . . . . . Flight . | . . . . . . . Utility 16 | 2 2 3 2 3 3 1 Device 12 | 1 1 3 1 3 3 . Storage 2 | 1 1 . . . . . Processor 1 | . . . 1 . . . Hackware 1 | . . . . . . 1 Protection . | . . . . . . . Artifact . | . . . . . . . Weapon 16 | 2 1 8 . 2 2 1 Energy Gun 5 | 1 1 . . . 2 1 Energy Cannon . | . . . . . . . Ballistic Gun 11 | 1 . 8 . 2 . . Ballistic Cannon . | . . . . . . . Launcher . | . . . . . . . Special Weapon . | . . . . . . . Impact Weapon . | . . . . . . . Slashing Weapon . | . . . . . . . Piercing Weapon . | . . . . . . . Special Melee Weapon . | . . . . . . . Unidentified Prototypes 1 | . . . . . . 1 Corrupted Parts 1 | . . . . . . 1 System Corruption 4 | . . . . . . 4 Parts Lost 22 | . 1 3 . 7 4 7 Power 4 | . . 1 . 2 . 1 Propulsion 6 | . . . . 3 1 2 Utility 4 | . 1 . . 1 . 2 Weapon 8 | . . 2 . 1 3 2 Highest Loss Streak 4 | . 1 2 . 4 3 4 To Critical Strikes . | . . . . . . . Average Backups 11 | 3 6 13 14 12 12 11 Power 1 | . 1 . 1 2 2 3 Propulsion 2 | 1 1 4 3 1 . . Utility 6 | . 3 6 6 7 9 8 Weapon . | . 1 1 2 1 . . Tool/Special . | . . . . . . . Unused Backups 9 | . 1 2 1 . . 5 Power 1 | . . 1 . . . . Propulsion 1 | . 1 . . . . . Utility 7 | . . 1 1 . . 5 Weapon . | . . . . . . . Tool/Special . | . . . . . . . Average Slot Usage (%) 95 | . 98 96 99 96 92 88 Engine 8 | . 14 10 9 6 . 3 Core 1 | . . . . 1 7 2 Treads 1 | . 5 . . . . . Wheel 25 | . 22 33 27 25 18 17 Device 17 | . 12 11 18 17 28 30 Storage 9 | . 14 11 9 9 7 6 Processor 4 | . . . 8 9 7 6 Energy Gun 7 | . 14 6 . . 8 15 Ballistic Gun 18 | . 14 23 27 26 13 . Peak Build Rating 43 | 7 10 19 26 28 35 43 Average Rating 20 | 5 7 12 25 24 32 37 On Entrance 17 | . 7 10 19 26 25 32 Naked Turns . | . . . . . . . Heaviest Build 45 | 13 28 37 40 40 40 45 Greatest Support 48 | 20 26 44 44 48 48 48 Greatest Overweight (x) 4 | 4 1 . 1 2 1 2 Average Overweight (x) . | . . . . . . . Largest Inventory Capacity 15 | 8 15 15 15 15 15 15 Average Capacity 14 | 7 12 15 15 15 15 15 Most Carried 15 | 5 13 15 15 15 13 13 Average Carried 11 | 3 6 13 14 12 11 11 Final Capacity 15 | 8 15 15 15 15 15 15 Final Carried 15 | 5 13 14 15 14 12 12 Class Distribution -------------------- 51% | Gunner 31% | Mutant 12% | Scavenger-Gunner 5% | Scavenger-Mutant Dominant Class ---------------- Mutant | -10/Materials Gunner | -9/Materials Gunner | -8/Materials Gunner | -8/Garrison Scavenger-Gunner | -7/Factory Scavenger-Gunner | -6/Factory Resources | -11 -10 -9 -8 -8 -7 -6 ----------- Run | Yrd Mat Mat Mat Gar Fac Fac Matter Collected 2399 | 204 413 524 418 548 66 226 Remotely 10 | . . 10 . . . . Salvage Created 2623 | 113 524 606 401 641 66 272 Parts 157 | 9 31 42 27 37 4 7 Haulers Intercepted 1 | . . 1 . . . . Recyclers Shooed 3 | . . 2 1 . . . Parts Field Recycled . | . . . . . . . Retrieved Matter . | . . . . . . . Parts Self-Destructed . | . . . . . . . Prevented . | . . . . . . . Kills | -11 -10 -9 -8 -8 -7 -6 ------- Run | Yrd Mat Mat Mat Gar Fac Fac Combat Hostiles Destroyed 41 | . 9 5 8 15 1 3 Guns 40 | . 9 5 8 15 1 2 Classes Destroyed 14 | 2 4 3 4 1 . . Worker 4 | . . . 2 . . 2 Builder 3 | . . 3 . . . . Tunneler 3 | 3 . . . . . . Hauler 1 | . . 1 . . . . Recycler 6 | 1 2 2 . . . 1 Operator 2 | . 1 1 . . . . Watcher 7 | . 2 4 . 1 . . Swarmer 9 | . 3 . 2 4 . . Grunt 18 | . 6 2 1 7 . 2 Brawler 1 | . . . 1 . . . Duelist 2 | . . . 1 1 . . Sentry 6 | . . 3 2 . 1 . Hunter 1 | . . . 1 . . . Programmer 4 | . . . . 3 . 1 Best Kill Streak 9 | 3 4 2 6 9 1 3 Combat Bots Only 9 | . 3 2 5 9 1 2 Max Kills in Single Turn 2 | 1 2 1 2 1 1 2 Gunslinging 1 | . 1 . . . . . Exploded . | . . . . . . . Melee . | . . . . . . . Uniques/NPCs Destroyed . | . . . . . . . Combat | -11 -10 -9 -8 -8 -7 -6 -------- Run | Yrd Mat Mat Mat Gar Fac Fac Hostile Shots Fired 240 | . 29 28 20 91 45 27 Missed 59 | . 6 3 10 18 15 7 Hits 181 | . 23 25 10 73 30 20 Melee 6 | . . . . 6 . . Projectile 175 | . 23 25 10 67 30 20 Critical Strikes 6 | . . 1 . 5 . . Damage Taken 2587 | . 294 349 152 1170 220 402 Core 390 | . 61 37 13 223 29 27 Absorbed by Shields . | . . . . . . . Regen/Repaired (Parts) 21 | . . . . . . 21 Core Remaining (%) 83 | 100 75 90 . 57 95 . Volleys Fired 195 | 9 35 35 22 63 4 27 Largest 3 | 2 2 3 3 3 3 3 Hottest 150 | 70 70 120 75 75 75 150 Shots Fired 468 | 18 68 92 66 177 9 38 Gun 468 | 18 68 92 66 177 9 38 Cannon . | . . . . . . . Launcher . | . . . . . . . Special . | . . . . . . . Kinetic 371 | 9 35 76 66 177 8 . Thermal 89 | 9 33 16 . . . 31 Explosive . | . . . . . . . Electromagnetic 8 | . . . . . 1 7 Robot Hit Streak 19 | 5 9 11 10 12 10 19 Robot Miss Streak 4 | 1 4 4 3 3 . 1 Penetration Max . | . . . . . . . Secondary Targets 5 | . 1 1 . 3 . . Max Gunslinging Chain 1 | . 1 1 . 1 . . Shots Hit Robots 284 | 14 43 55 41 91 8 32 Core Hits 128 | 5 23 23 16 42 4 15 Critical Kills 5 | 1 2 . . 2 . . Critical Parts Destroyed 1 | . . . 1 . . . Critical Strikes 14 | 2 7 2 1 2 . . Burn 8 | 1 5 2 . . . . Destroy 6 | 1 2 . 1 2 . . Melee Attacks . | . . . . . . . Impact . | . . . . . . . Slashing . | . . . . . . . Piercing . | . . . . . . . Sneak Attacks . | . . . . . . . Combat Hostiles . | . . . . . . . Follow-up Attacks . | . . . . . . . Damage Inflicted 4695 | 172 567 818 674 1451 117 896 Guns 4486 | 172 567 809 674 1445 117 702 Cannons . | . . . . . . . Explosions 177 | . . . . . . 177 Melee . | . . . . . . . Ramming 32 | . . 9 . 6 . 17 Kinetic 3222 | 73 294 633 674 1445 103 . Thermal 1339 | 99 273 176 . . . 791 Explosive . | . . . . . . . Electromagnetic 102 | . . . . . 14 88 Impact . | . . . . . . . Slashing . | . . . . . . . Piercing . | . . . . . . . Highest Corruption 6 | . . . . 3 . 6 Average Corruption 3 | . . . . 2 . 4 Corruption Purged . | . . . . . . . Corruption Blocked . | . . . . . . . Effects 14 | . . . . 3 . 11 Message Errors 3 | . . . . 2 . 1 Matter Fused 5 | . . . . 1 . 4 Heat Flow Errors 1 | . . . . . . 1 Energy Discharges 2 | . . . . . . 2 Data Loss (major) 1 | . . . . . . 1 Misfires 1 | . . . . . . 1 Alerts 1 | . . . . . . 1 Overload Shots . | . . . . . . . Overflow Damage . | . . . . . . . Projectiles . | . . . . . . . Explosions . | . . . . . . . Melee . | . . . . . . . Knockbacks . | . . . . . . . Impact . | . . . . . . . Kinetic . | . . . . . . . Secondary . | . . . . . . . Self-Inflicted Damage 68 | . . 4 . 3 . 61 Shots 1 | . . . . . . 1 Rammed 7 | . . 1 . 1 . 5 Targets Rammed 7 | . . 1 . 1 . 5 Kicked . | . . . . . . . Crushed . | . . . . . . . Highest Temperature 234 | 36 234 55 12 30 5 139 Average Temperature 42 | 14 90 13 8 8 5 39 Received Heat Transfer 912 | . 138 129 18 468 60 99 Effects 2 | . 2 . . . . . Interference 2 | . 2 . . . . . Siege Activations . | . . . . . . . Martial Activations . | . . . . . . . Shielding Activations . | . . . . . . . Robots Disrupted . | . . . . . . . Combat Hostiles . | . . . . . . . Robots Corrupted . | . . . . . . . Combat Hostiles . | . . . . . . . Parts Fried . | . . . . . . . Impact Corruptions . | . . . . . . . Robots Melted 1 | . . . . . . 1 Combat Hostiles 1 | . . . . . . 1 Parts Melted 13 | 3 3 2 . . . 5 Heat Transferred 3546 | 370 1184 666 . . . 1326 Parts Sabotaged . | . . . . . . . Parts Stolen . | . . . . . . . Parts Stripped . | . . . . . . . Power Chain Reactions 1 | . . . . . . 1 Alert | -11 -10 -9 -8 -8 -7 -6 ------- Run | Yrd Mat Mat Mat Gar Fac Fac Maximum Alert Level 2 | . . . . 2 1 . Low Security (%) 79 | 100 100 100 100 25 . 100 Level 1 10 | . . . . 26 100 . Level 2 10 | . . . . 47 . . Level 3 . | . . . . . . . Level 4 . | . . . . . . . Level 5 . | . . . . . . . High Security . | . . . . . . . Max Security . | . . . . . . . Peak Influence 535 | 5 112 56 155 535 280 98 Initial 280 | . . 32 1 100 280 98 Average 106 | 1 43 21 33 337 248 23 Influence Increases 1503 | 20 324 256 260 505 30 108 Destroy 0b10 Robot/C 820 | . 180 100 160 300 20 60 Destroy 0b10 Robot/NC 130 | 20 25 55 10 5 . 15 Destroy Leader 194 | . 54 50 50 20 10 10 Successful Hack 52 | . 35 5 10 . . 2 Disable Machine 45 | . . 45 . . . . Anti-Garrison Action 100 | . . . . 100 . . Destroy Structure 12 | . . 1 . 5 . 6 Lose Combat Pursuer 150 | . 30 . 30 75 . 15 Influence Decreases 1483 | 20 247 328 110 125 365 288 Entered New Map 461 | . . 45 4 55 255 102 Time Decay 850 | 20 237 283 106 . 70 134 Lost Part 172 | . 10 . . 70 40 52 Squads Dispatched 5 | . 2 1 2 . . . Investigation 2 | . 2 . . . . . Extermination . | . . . . . . . Reinforcement 1 | . . 1 . . . . Assault . | . . . . . . . Garrison 2 | . . . 2 . . . Intercept . | . . . . . . . Searches Triggered . | . . . . . . . Construction Impeded . | . . . . . . . Haulers Reinforced . | . . . . . . . Active Scanning Responses . | . . . . . . . Cargo Convoy Interrupts . | . . . . . . . Stealth | -11 -10 -9 -8 -8 -7 -6 --------- Run | Yrd Mat Mat Mat Gar Fac Fac Distress Signals 2 | . 1 . . . . 1 Communications Jammed . | . . . . . . . Distress Signals . | . . . . . . . Times Spotted 72 | . 15 14 8 19 2 14 Peak Tracking Total 7 | . 5 3 7 7 1 5 Tactical Retreats 6 | . 1 . 1 3 . 1 Traps | -11 -10 -9 -8 -8 -7 -6 ------- Run | Yrd Mat Mat Mat Gar Fac Fac Traps Triggered 9 | . 2 . . 4 . 3 Indirectly . | . . . . . . . Trap Hack Attempts . | . . . . . . . Triggered . | . . . . . . . Disarmed . | . . . . . . . Reprogrammed . | . . . . . . . Reused . | . . . . . . . Traps Extracted . | . . . . . . . Installed . | . . . . . . . Triggered . | . . . . . . . Machines | -11 -10 -9 -8 -8 -7 -6 ---------- Run | Yrd Mat Mat Mat Gar Fac Fac Machines Disabled 5 | . . 3 . 2 . . Max in Single Turn 1 | . . 1 . 1 . . Garrison Relay 2 | . . . . 2 . . Machines Repaired . | . . . . . . . Machines Dismantled . | . . . . . . . Machines Sabotaged . | . . . . . . . Overloaded Fab Kills . | . . . . . . . Hacking | -11 -10 -9 -8 -8 -7 -6 --------- Run | Yrd Mat Mat Mat Gar Fac Fac Machines Accessed 19 | . 5 5 4 3 . 2 Terminals 15 | . 5 4 3 3 . . Fabricators . | . . . . . . . Repair Stations 3 | . . 1 . . . 2 Recycling Units . | . . . . . . . Scanalyzers . | . . . . . . . Garrison Access 1 | . . . 1 . . . Total Hacks 42 | . 14 14 8 3 . 3 Successful 21 | . 8 6 4 1 . 2 Failed 21 | . 6 8 4 2 . 1 Catastrophic 6 | . 3 1 1 1 . . Database Lockouts . | . . . . . . . Manual 7 | . 2 3 2 . . . Terminals 36 | . 14 12 7 3 . . Fabricators . | . . . . . . . Repair Stations 5 | . . 2 . . . 3 Recycling Units . | . . . . . . . Scanalyzers . | . . . . . . . Garrison Access 1 | . . . 1 . . . Terminal Hacks 18 | . 8 6 3 1 . . Prototype ID Bank 4 | . . 3 1 . . . Branch Access Points 1 | . 1 . . . . . Emergency Access Points 1 | . . . . 1 . . Alert Level 2 | . 1 1 . . . . Locate Traps 1 | . 1 . . . . . Dispatch Records 2 | . . 2 . . . . Maintenance Status 1 | . 1 . . . . . Security Status 1 | . 1 . . . . . Reinforcement Status 1 | . . . 1 . . . Zone Layout 4 | . 3 . 1 . . . Fabricator Hacks . | . . . . . . . Repair Station Hacks 2 | . . . . . . 2 Scan Component 1 | . . . . . . 1 Repair 1 | . . . . . . 1 Recycling Unit Hacks . | . . . . . . . Scanalyzer . | . . . . . . . Garrison Access Hacks 1 | . . . 1 . . . Unlock Access 1 | . . . 1 . . . Unauthorized Hacks . | . . . . . . . Terminals . | . . . . . . . Fabricators . | . . . . . . . Repair Stations . | . . . . . . . Recycling Units . | . . . . . . . Scanalyzers . | . . . . . . . Garrison Access . | . . . . . . . Data Cores Recovered 1 | . 1 . . . . . Used 1 | . 1 . . . . . Hacking Detections 17 | . 5 4 3 3 . 2 Full Trace Events 1 | . 1 . . . . . Feedback Events . | . . . . . . . Feedback Blocked . | . . . . . . . Robot Schematics Acquired . | . . . . . . . Robots Built . | . . . . . . . Authchips . | . . . . . . . Time . | . . . . . . . Total Robot Build Rating . | . . . . . . . Part Schematics Acquired . | . . . . . . . Parts Built . | . . . . . . . Authchips . | . . . . . . . Time . | . . . . . . . Total Part Build Rating . | . . . . . . . Parts Repaired 1 | . . . . . . 1 Time 26 | . . . . . . 26 Parts Recycled . | . . . . . . . Recycled Matter . | . . . . . . . Retrieved Matter . | . . . . . . . Retrieved Components . | . . . . . . . Parts Scanalyzed . | . . . . . . . Part Schematics Acquired . | . . . . . . . Parts Damaged . | . . . . . . . Bothacking | -11 -10 -9 -8 -8 -7 -6 ------------ Run | Yrd Mat Mat Mat Gar Fac Fac Used RIF Installer 2 | . . . . 2 . . Coupler Efficiency 1 | . . . . 1 . . Robots Hacked . | . . . . . . . Non-combat . | . . . . . . . Combat . | . . . . . . . Robot Hacks Applied . | . . . . . . . Relay Couplers Released 7 | . . . . 7 . . Machine Destruction 7 | . . . . 7 . . Attached 1 | . . . . . . 1 Fabnet Peak Effective % . | . . . . . . . Robots Rewired . | . . . . . . . Allies Hacked . | . . . . . . . Hacks Repelled . | . . . . . . . Allies | -11 -10 -9 -8 -8 -7 -6 -------- Run | Yrd Mat Mat Mat Gar Fac Fac Total Allies . | . . . . . . . Largest Group . | . . . . . . . Highest-Rated Group . | . . . . . . . Highest-Rated Ally . | . . . . . . . Total Orders . | . . . . . . . Ally Attacks . | . . . . . . . Total Damage . | . . . . . . . Kills . | . . . . . . . Allies Corrupted . | . . . . . . . Allies Melted . | . . . . . . . Intel | -11 -10 -9 -8 -8 -7 -6 ------- Run | Yrd Mat Mat Mat Gar Fac Fac Active Infowar (turns) 2846 | 52 477 676 298 721 142 480 Sensors 1240 | . . . . 618 142 480 Seismic 1606 | 52 477 676 298 103 . . Robot Analysis Total . | . . . . . . . Derelict Logs Recovered . | . . . . . . . Drone Launches . | . . . . . . . Drone Recoveries . | . . . . . . . Exploration | -11 -10 -9 -8 -8 -7 -6 ------------- Run | Yrd Mat Mat Mat Gar Fac Fac Turns Passed 3247 | 122 633 795 298 721 142 536 Spaces Moved 2246 | 61 474 584 215 460 99 353 Core 12 | 12 . . . . . . Treads 62 | 7 55 . . . . . Legs . | . . . . . . . Wheels 2172 | 42 419 584 215 460 99 353 Hover . | . . . . . . . Flight . | . . . . . . . Fastest Speed 50 | 50 80 90 90 96 100 93 Average Speed 100 | 108 102 93 98 100 110 103 Slowest Speed 250 | 250 160 96 105 120 115 130 Overloaded Moves . | . . . . . . . Propulsion Burnouts . | . . . . . . . Robots Hopped . | . . . . . . . Potential Cave-ins . | . . . . . . . Cave-ins Triggered . | . . . . . . . Exploration Rate (%) 29 | 5 66 56 19 46 2 9 Regions Visited 6 Branch Regions . Pre-discovered Areas . | . . . . . . . Known Exits Taken 1 | . . . 1 . . . Unknown Exits Taken 4 | 1 1 1 . . 1 . Scrap Searched . | . . . . . . . Spaces Dug . | . . . . . . . Terrain Destroyed 10 | . . . . . . 10 Melee . | . . . . . . . Projectile . | . . . . . . . AOE 10 | . . . . . . 10 Terrain Rammed . | . . . . . . . Walls Destroyed . | . . . . . . . Machines Disabled . | . . . . . . . Actions | -11 -10 -9 -8 -8 -7 -6 --------- Run | Yrd Mat Mat Mat Gar Fac Fac Total 2884 | 95 550 762 266 606 124 481 Wait 292 | 14 25 102 17 39 16 79 Move 2239 | 60 473 583 214 458 98 353 Hop . | . . . . . . . Pick Up 26 | 5 6 6 4 5 . . Fast Attach 28 | 7 1 2 . 5 2 11 Attach 17 | . . 3 2 7 2 3 Detach 4 | . . . . 3 . 1 Swap 34 | . 7 16 3 5 1 2 Drop 27 | . 3 14 4 5 1 . Fire 195 | 9 35 35 22 63 4 27 Melee . | . . . . . . . Ram 7 | . . 1 . 1 . 5 Kick . | . . . . . . . Crush . | . . . . . . . Escape Stasis 15 | . . . . 15 . . Rewire . | . . . . . . . Trap . | . . . . . . . Miscellaneous . | . . . . . . . Route ------- -11/Scrapyard -10/Materials (discovered 4 exits: *Mat x3 / Min) -9/Materials (discovered 3 exits: *Mat x2 / [*Min]) -8/Materials -8/Garrison -7/Factory -6/Factory History --------- Turn | Location | Event 10 | -11/Scrapyard | Discovered new exit (range 16) 123 | -11/Scrapyard | Entered Materials 314 | -10/Materials | Build established: Mutant 481 | -10/Materials | Discovered new exit (range 12) 537 | -10/Materials | Identified exit to Mines 567 | -10/Materials | Discovered new exit (range 9) 723 | -10/Materials | Derelicts attacked the area 731 | -10/Materials | Discovered new exit (range 15) 756 | -10/Materials | Entered another Materials area 756 | -9/Materials | Evolved 2 slots: Propulsion x1, Weapon x1 1081 | -9/Materials | Discovered new exit (range 6) 1270 | -9/Materials | Discovered new exit (range 5) 1326 | -9/Materials | Build established: Gunner 1500 | -9/Materials | Discovered new exit (range 16) 1551 | -9/Materials | Entered another Materials area 1551 | -8/Materials | Evolved 2 slots: Utility x2 1713 | -8/Materials | Garrison activated, responded to threat 1848 | -8/Materials | Identified exit to Garrison 1849 | -8/Materials | Entered Garrison 1886 | -8/Garrison | Triggered checkpoint 1942 | -8/Garrison | Garrison Relay disabled 2013 | -8/Garrison | Triggered checkpoint 2136 | -8/Garrison | Lost 4 parts (1p2n1w) 2149 | -8/Garrison | Destroyed 9 combat bots 2286 | -8/Garrison | Discovered new exit (range 12) 2323 | -8/Garrison | Triggered checkpoint 2349 | -8/Garrison | Installed Relay Interface Framework 2424 | -8/Garrison | Lost 3 parts (1p1n1u) 2453 | -8/Garrison | Expanded RIF knowledge: Coupler Efficiency 2473 | -8/Garrison | Garrison Relay disabled 2570 | -8/Garrison | Entered Factory 2570 | -7/Factory | Evolved 2 slots: Utility x2 2659 | -7/Factory | Lost 3 parts (1n2w) 2695 | -7/Factory | Discovered new exit (range 13) 2712 | -7/Factory | Entered another Factory area 2712 | -6/Factory | Evolved 2 slots: Utility x2 2865 | -6/Factory | Repaired Com. Wheel 3140 | -6/Factory | Build established: Scavenger-Gunner 3183 | -6/Factory | Lost 3 parts (1p2w) 3248 | -6/Factory | Self-destructed Last Messages --------------- payload. 03206_ P-60 Hacker unfolds itself. 03207_ Recoil Stabilizer destroyed. 03207_ Wheel destroyed. 03223_ Com. Wheel destroyed. 03226_ System corrupted: FCS attempts to trigger Cld. Pulse Rifle. 03226_ System corrupted: Cld. Pulse Rifle misfires. 03226_ Destroyed Shock Rifle. 03231_ Destroyed Gravmag System. 03233_ Imp. Heat Sink melted. 03233_ Target Analyzer melted. 03233_ P-60 Hacker destroyed. 03235_ Acquired 40 matter. 03246_ C-30 ARC bursts open, deploying its payload. 03246_ L-41 Fighter unfolds itself. 03246_ G-50 Soldier unfolds itself. 03246_ Imp. Heat Sink destroyed. Map ----- +----------------------------------------------------+ | ??????????????????????????????# # """"""" | | ??????????????????????????????# # """"""" | | ??????????????????????????????# #! """"""" | | ??????????????????????????????# # | | ??????????????????????????????# # """"""" | | ??????????????????????????????# # """"""" | | ??????????????????????????????# # """"""" | | ??????????????????????????????# # """"""" | | ??????????????????????????????# # | | ??????????????????????????????# + | | ??????????????????????????????# ############ | | ??????????????????????????????# # | | ????????????????????########### # | | ??????????????????? # # "" "" | | ???????????????????? # #?"" "" | | ?????????????????# """ # #?""" """ | | ?????????????????# """"" # # """ """ | | ?????????????????#g """"" + + """ """ | | ?????????????????#% # # | | ?????????????????#g l """ # #?? | | ?????????????????# """"" # #??? | | ?????????????????# """"" # #??? | | ?????????????????# u # #??? ! | | ?????????????????# A # #??######### | | ?????????????????# u p # #??????????? | | ?????????????????########@##### #??????????? | | ????????????????????????# ##### +??????????? | | ??????????????????????# # # ## #??????????? | | ??????????????????????# # # #?# #??????????? | | ???????????#+############ ###?# #??????????? | | ?????????? % #?# #??????????? | | ?????????? % #?? ???????????? | | ?????????? #?? ???????????????? | | ?????????? #????????????????????? | | ?????????? #????????????????????? | | ???????????############ #????????????????????? | | ??????????????????????# #????????????????????? | | ??????????????????????# #????????????????????? | | ??????????????????????# k #????????????????????? | | ??????????????????????# "#????????????????????? | | ??????????????????????# %#????????????????????? | | ??????????????????????# "#????????????????????? | | ??????????????????????# #????????????????????? | | ??????????????????????# #????????????????????? | | ??????????????????????# #????????????????????? | | ??????????????????????# #????????????????????? | | ?????????????????????? #????????????????????? | | ??????????????????????? ?????????????????????? | | ?????????????????????????????????????????????????? | | ?????????????????????????????????????????????????? | +----------------------------------------------------+ Best States ------------- Heat Dissipation 65 Coolant Potential 65 Energy Generation 18 Energy Capacity 275 Matter Stores 300 Matter Capacity 300 Sight Range 16 Robot Scan Range 15 Terrain Scan Density 10 Evasion (%) 44 Targeting Accuracy 8 Recoil Reduction 4 Relay Coupler Types 1 Relay Coupler Value 29 Item Schematics ----------------- None Robot Schematics ------------------ None Fabricated ------------ Nothing Repaired ---------- Com. Wheel | 30% | -6/Factory Alien Tech Used ----------------- None Achievements -------------- None Challenges ------------ None Game ------ Seed FireDefenseLance Manual? 0 Play Time 00:28:34 Cumulative 64.4 hours Start 2025.09.14 @ 22:02:09 End 2025.09.14 @ 22:28:05 Sessions 1 Manual Loads 0 Difficulty Rogue Special Mode None Game No. 130 Rogue 128 Adventurer 0 Explorer 2 Win Type - Total 0 Types 0/0/0/0/0/0/0/0/0/0 Lore% 27 Gallery% 42 Achievement% 39 Wizard Run 0 Options --------- Layout 2 ASCII 0 Keyboard 1 Movement Arrows Keybinds 0 Fullscreen 1 Font 28/SmallcapsGlow Map View 50x49 Zoom Use 0% Tactical HUD 1 Map Filters NONE Filters NONE Steam 1 RUN: 3692b209-4827-4133-87d7-fadd28ac6025